[Event "*** Titled Tuesday Blitz"]
[Site "Chess.com"]
[Date "2019.09.03"]
[Round "6"]
[White "Th3ChessViking"]
[Black "Renier07"]
[Result "0-1"]
[WhiteElo "2446"]
[BlackElo "2601"]
[TimeControl "180+2"]
[EndTime "16:21:15 PDT"]
[Termination "Renier07 won by resignation"]

1. d4 {[%clk 0:02:59.6]} 1... Nf6 {[%clk 0:02:57.8]} 2. c4 {[%clk 0:02:55.4]}
2... e6 {[%clk 0:02:59]} 3. Nc3 {[%clk 0:02:56]} 3... Bb4 {[%clk 0:02:59.7]} 4.
f3 {[%clk 0:02:57.3]} 4... d5 {[%clk 0:02:59.2]} 5. a3 {[%clk 0:02:56.5]} 5...
Bxc3+ {[%clk 0:03:00.5]} 6. bxc3 {[%clk 0:02:58.4]} 6... c6 {[%clk 0:03:00.6]}
7. e3 {[%clk 0:02:51.8]} 7... b6 {[%clk 0:03:00.2]} 8. cxd5 {[%clk 0:02:41.4]}
8... cxd5 {[%clk 0:03:01.4]} 9. Bd3 {[%clk 0:02:39.5]} 9... O-O {[%clk
0:03:00.7]} 10. Qe2 {[%clk 0:02:35.8]} 10... Bb7 {[%clk 0:02:58.1]} 11. c4
{[%clk 0:02:28.4]} 11... dxc4 {[%clk 0:02:58.6]} 12. Bxc4 {[%clk 0:02:29.2]}
12... Nc6 {[%clk 0:02:50.2]} 13. Bb2 {[%clk 0:02:23.7]} 13... Na5 {[%clk
0:02:41.8]} 14. Bd3 {[%clk 0:02:23.8]} 14... Rc8 {[%clk 0:02:39.5]} 15. Nh3
{[%clk 0:02:21.2]} 15... Bd5 {[%clk 0:02:35]} 16. Rc1 {[%clk 0:02:03.3]} 16...
Rxc1+ {[%clk 0:02:34.6]} 17. Bxc1 {[%clk 0:02:05.2]} 17... Qc7 {[%clk
0:02:32.5]} 18. O-O {[%clk 0:02:01.7]} 18... Bc4 {[%clk 0:02:33.4]} 19. e4
{[%clk 0:01:57.8]} 19... Bxd3 {[%clk 0:02:33]} 20. Qxd3 {[%clk 0:01:59.7]} 20...
Qc4 {[%clk 0:02:34]} 21. Rd1 {[%clk 0:01:49.7]} 21... Rc8 {[%clk 0:02:33.5]} 22.
Bg5 {[%clk 0:01:48.5]} 22... Qxd3 {[%clk 0:02:32]} 23. Rxd3 {[%clk 0:01:50.4]}
23... Nd7 {[%clk 0:02:29.8]} 24. Be3 {[%clk 0:01:47]} 24... Rc2 {[%clk
0:02:16.6]} 25. d5 {[%clk 0:01:40.3]} 25... e5 {[%clk 0:02:16.3]} 26. Bd2 {[%clk
0:00:57.8]} 26... Nc4 {[%clk 0:02:14.4]} 27. Bb4 {[%clk 0:00:57.2]} 27... f6
{[%clk 0:02:05.1]} 28. Nf2 {[%clk 0:00:51.8]} 28... a5 {[%clk 0:02:01]} 29. Be7
{[%clk 0:00:48.8]} 29... Kf7 {[%clk 0:02:01.1]} 30. d6 {[%clk 0:00:41.3]} 30...
Rc1+ {[%clk 0:02:00.6]} 31. Rd1 {[%clk 0:00:32.7]} 31... Rxd1+ {[%clk
0:02:01.4]} 32. Nxd1 {[%clk 0:00:34.6]} 32... Nxa3 {[%clk 0:02:00.2]} 33. Nc3
{[%clk 0:00:36.5]} 33... b5 {[%clk 0:01:50.8]} 34. Bd8 {[%clk 0:00:32.5]} 34...
b4 {[%clk 0:01:42]} 35. Na4 {[%clk 0:00:30.8]} 35... Nc4 {[%clk 0:01:40.7]} 36.
Kf2 {[%clk 0:00:31.4]} 36... b3 {[%clk 0:01:40.4]} 37. Ke2 {[%clk 0:00:32.4]}
37... b2 {[%clk 0:01:41.2]} 38. Nc3 {[%clk 0:00:32.8]} 38... a4 {[%clk
0:01:40.7]} 39. Kd3 {[%clk 0:00:30.1]} 39... a3 {[%clk 0:01:39.2]} 40. Kc2
{[%clk 0:00:30.9]} 40... Nc5 {[%clk 0:01:34.3]} 41. Kb1 {[%clk 0:00:26.1]} 41...
Ke6 {[%clk 0:01:24.3]} 42. Be7 {[%clk 0:00:22.6]} 42... Nxd6 {[%clk 0:01:21.4]}
43. Bf8 {[%clk 0:00:22.4]} 43... g6 {[%clk 0:01:19.5]} 44. Ka2 {[%clk
0:00:23.7]} 44... Nd3 {[%clk 0:01:14.3]} 45. Bxd6 {[%clk 0:00:18.8]} 45... Kxd6
{[%clk 0:01:15.1]} 46. Kxa3 {[%clk 0:00:20.7]} 46... Kc5 {[%clk 0:01:12.8]} 47.
Kb3 {[%clk 0:00:21.2]} 47... Kd4 {[%clk 0:01:12.4]} 48. Kc2 {[%clk 0:00:22.3]}
48... Ne1+ {[%clk 0:01:08]} 49. Kxb2 {[%clk 0:00:23.6]} 49... Nxg2 {[%clk
0:01:09.3]} 50. Nd5 {[%clk 0:00:24.6]} 50... f5 {[%clk 0:01:09]} 51. Nf6 {[%clk
0:00:23.4]} 51... Nh4 {[%clk 0:01:04]} 52. exf5 {[%clk 0:00:21.8]} 52... gxf5
{[%clk 0:01:05.3]} 53. Nxh7 {[%clk 0:00:20.2]} 53... Nxf3 {[%clk 0:01:06.5]} 54.
h3 {[%clk 0:00:16.8]} 54... Kd3 {[%clk 0:01:05.5]} 55. Kc1 {[%clk 0:00:17.6]}
55... Ke2 {[%clk 0:01:03.6]} 56. Nf8 {[%clk 0:00:19.5]} 56... Nh4 {[%clk
0:01:00]} 57. Ne6 {[%clk 0:00:19.8]} 57... f4 {[%clk 0:01:00.1]} 58. Ng5 {[%clk
0:00:20.1]} 58... f3 {[%clk 0:00:59.8]} 59. Ne4 {[%clk 0:00:19]} 59... f2 {[%clk
0:01:00.7]} 60. Kc2 {[%clk 0:00:19.1]} 60... Ke3 {[%clk 0:00:54.9]} 61. Ng3
{[%clk 0:00:19.2]} 61... e4 {[%clk 0:00:54.5]} 62. Kd1 {[%clk 0:00:19.6]} 62...
Kf3 {[%clk 0:00:55.5]} 63. Nf1 {[%clk 0:00:20.6]} 63... e3 {[%clk 0:00:54.4]}
64. Nxe3 {[%clk 0:00:13.3]} 64... Kxe3 {[%clk 0:00:55.2]} 0-1

[Event "*** Titled Tuesday Blitz"]
[Site "Chess.com"]
[Date "2019.09.03"]
[Round "6"]
[White "Parhamov"]
[Black "Sanan_Sjugirov"]
[Result "1/2-1/2"]
[WhiteElo "2906"]
[BlackElo "2871"]
[TimeControl "180+2"]
[EndTime "16:21:19 PDT"]
[Termination "Game drawn by repetition"]

1. d4 {[%clk 0:03:01.9]} 1... Nf6 {[%clk 0:03:00.3]} 2. Bf4 {[%clk 0:03:01.9]}
2... e6 {[%clk 0:02:52]} 3. Nf3 {[%clk 0:03:03.1]} 3... c5 {[%clk 0:02:52.5]} 4.
e3 {[%clk 0:03:03.5]} 4... cxd4 {[%clk 0:02:53.5]} 5. exd4 {[%clk 0:03:04.7]}
5... b6 {[%clk 0:02:54.5]} 6. Bd3 {[%clk 0:03:05.8]} 6... Bb7 {[%clk 0:02:55.3]}
7. O-O {[%clk 0:03:07.3]} 7... Be7 {[%clk 0:02:55.5]} 8. h3 {[%clk 0:03:09.2]}
8... d6 {[%clk 0:02:53.4]} 9. Nbd2 {[%clk 0:03:10.7]} 9... O-O {[%clk
0:02:53.1]} 10. Re1 {[%clk 0:03:10.7]} 10... Nbd7 {[%clk 0:02:53.3]} 11. a4
{[%clk 0:03:07]} 11... a6 {[%clk 0:02:52.7]} 12. Bg3 {[%clk 0:03:04.1]} 12...
Re8 {[%clk 0:02:45.6]} 13. c3 {[%clk 0:03:05.1]} 13... h6 {[%clk 0:02:37.7]} 14.
b4 {[%clk 0:02:43.8]} 14... d5 {[%clk 0:02:10.2]} 15. a5 {[%clk 0:02:26.1]}
15... b5 {[%clk 0:01:51.2]} 16. Nb3 {[%clk 0:02:26.3]} 16... Ne4 {[%clk
0:01:49.1]} 17. Rc1 {[%clk 0:02:17.2]} 17... Nxg3 {[%clk 0:01:38.7]} 18. fxg3
{[%clk 0:02:19.1]} 18... Qc7 {[%clk 0:01:39.8]} 19. g4 {[%clk 0:02:17.1]} 19...
Bd6 {[%clk 0:01:36.4]} 20. Nc5 {[%clk 0:02:11.5]} 20... Nxc5 {[%clk 0:01:32.3]}
21. dxc5 {[%clk 0:02:11.8]} 21... Bf4 {[%clk 0:01:32.6]} 22. Rc2 {[%clk
0:02:11.9]} 22... e5 {[%clk 0:01:29.3]} 23. Rce2 {[%clk 0:02:10.1]} 23... e4
{[%clk 0:01:27.6]} 24. Bc2 {[%clk 0:02:08.2]} 24... Bg3 {[%clk 0:01:22]} 25. Nd4
{[%clk 0:02:08.3]} 25... Bxe1 {[%clk 0:01:09.1]} 26. Qxe1 {[%clk 0:02:10.2]}
26... g6 {[%clk 0:01:01.6]} 27. Qf2 {[%clk 0:02:07.2]} 27... Kg7 {[%clk
0:00:59.9]} 28. Qe3 {[%clk 0:02:07.7]} 28... Rac8 {[%clk 0:00:54.7]} 29. Rf2
{[%clk 0:02:07.6]} 29... Qe5 {[%clk 0:00:55.4]} 30. h4 {[%clk 0:02:05.7]} 30...
Rc7 {[%clk 0:00:53.7]} 31. Bd1 {[%clk 0:02:00.5]} 31... Bc8 {[%clk 0:00:52.6]}
32. Be2 {[%clk 0:01:57.6]} 32... Rf8 {[%clk 0:00:52.2]} 33. Rf4 {[%clk
0:01:54.6]} 33... Kg8 {[%clk 0:00:32.7]} 34. Bd1 {[%clk 0:01:55.3]} 34... f5
{[%clk 0:00:20.6]} 35. Bb3 {[%clk 0:01:53.3]} 35... g5 {[%clk 0:00:10.2]} 36.
hxg5 {[%clk 0:01:53.4]} 36... hxg5 {[%clk 0:00:12.1]} 37. Rxf5 {[%clk 0:01:54]}
37... Bxf5 {[%clk 0:00:12.1]} 38. Nxf5 {[%clk 0:01:55.9]} 38... Rxf5 {[%clk
0:00:12.1]} 39. gxf5 {[%clk 0:01:57]} 39... Qxf5 {[%clk 0:00:14]} 40. Qd4 {[%clk
0:01:55.6]} 40... Kh7 {[%clk 0:00:10.7]} 41. Bxd5 {[%clk 0:01:56.1]} 41... Re7
{[%clk 0:00:11.8]} 42. Qd1 {[%clk 0:01:44.5]} 42... e3 {[%clk 0:00:10.5]} 43.
Bf3 {[%clk 0:01:43.2]} 43... Qe5 {[%clk 0:00:09.3]} 44. Qd3+ {[%clk 0:01:40.7]}
44... Kg7 {[%clk 0:00:10.6]} 45. Be2 {[%clk 0:01:40.7]} 45... Qf6 {[%clk
0:00:09.9]} 46. Qd5 {[%clk 0:01:39.8]} 46... Qf2+ {[%clk 0:00:09.4]} 47. Kh2
{[%clk 0:01:41.2]} 47... Qh4+ {[%clk 0:00:06.5]} 48. Kg1 {[%clk 0:01:41.9]}
48... Qf2+ {[%clk 0:00:08.1]} 49. Kh2 {[%clk 0:01:42]} 49... Qxe2 {[%clk
0:00:09]} 50. Qxg5+ {[%clk 0:01:42.6]} 50... Kf8 {[%clk 0:00:10.3]} 51. Qf4+
{[%clk 0:01:34]} 51... Rf7 {[%clk 0:00:09.4]} 52. Qh6+ {[%clk 0:01:32.7]} 52...
Kg8 {[%clk 0:00:08]} 53. Qg6+ {[%clk 0:01:31.1]} 53... Rg7 {[%clk 0:00:09.2]}
54. Qe6+ {[%clk 0:01:30]} 54... Kh7 {[%clk 0:00:09.6]} 55. Qh3+ {[%clk 0:01:28]}
55... Kg6 {[%clk 0:00:08.8]} 56. Qe6+ {[%clk 0:01:29]} 56... Kg5 {[%clk
0:00:06.3]} 57. Qe5+ {[%clk 0:01:27.6]} 57... Kh6 {[%clk 0:00:07.6]} 58. Qf4+
{[%clk 0:01:25.9]} 58... Kh7 {[%clk 0:00:07.1]} 59. Qh4+ {[%clk 0:01:22.8]}
59... Kg6 {[%clk 0:00:08.5]} 60. Qe4+ {[%clk 0:01:21]} 60... Kh5 {[%clk
0:00:06.6]} 61. Qe5+ {[%clk 0:01:18.1]} 61... Kh6 {[%clk 0:00:06.3]} 62. Qf4+
{[%clk 0:01:19.1]} 62... Kg6 {[%clk 0:00:07.2]} 63. Qe4+ {[%clk 0:01:19.8]}
63... Kg5 {[%clk 0:00:07]} 64. Qe5+ {[%clk 0:01:20.7]} 64... Kh6 {[%clk
0:00:08.4]} 1/2-1/2

[Event "*** Titled Tuesday Blitz"]
[Site "Chess.com"]
[Date "2019.09.03"]
[Round "6"]
[White "vinniethepooh"]
[Black "Mikhail_Golubev"]
[Result "0-1"]
[WhiteElo "2584"]
[BlackElo "2430"]
[TimeControl "180+2"]
[EndTime "16:21:21 PDT"]
[Termination "Mikhail_Golubev won by resignation"]

1. d4 {[%clk 0:03:01.9]} 1... Nf6 {[%clk 0:02:26.5]} 2. c4 {[%clk 0:03:02.7]}
2... g6 {[%clk 0:02:26.7]} 3. Nc3 {[%clk 0:03:04]} 3... Bg7 {[%clk 0:02:27.9]}
4. e4 {[%clk 0:03:05.2]} 4... d6 {[%clk 0:02:28.9]} 5. Be2 {[%clk 0:03:06.2]}
5... O-O {[%clk 0:02:29.7]} 6. Nf3 {[%clk 0:03:07.6]} 6... e5 {[%clk 0:02:29.9]}
7. O-O {[%clk 0:03:09.3]} 7... Nc6 {[%clk 0:02:01.1]} 8. d5 {[%clk 0:03:05.5]}
8... Ne7 {[%clk 0:02:01.4]} 9. b4 {[%clk 0:03:07]} 9... Ne8 {[%clk 0:02:01.2]}
10. a4 {[%clk 0:03:06.2]} 10... f5 {[%clk 0:01:51.6]} 11. a5 {[%clk 0:03:07.3]}
11... Nf6 {[%clk 0:01:47.2]} 12. Nd2 {[%clk 0:03:05.4]} 12... f4 {[%clk
0:01:45.5]} 13. c5 {[%clk 0:03:04.9]} 13... g5 {[%clk 0:01:46.4]} 14. Ba3 {[%clk
0:02:55.7]} 14... g4 {[%clk 0:01:20.5]} 15. b5 {[%clk 0:02:56.2]} 15... Ng6
{[%clk 0:01:05.2]} 16. Nc4 {[%clk 0:02:50.7]} 16... f3 {[%clk 0:00:59.4]} 17.
gxf3 {[%clk 0:02:43.5]} 17... gxf3 {[%clk 0:01:00.2]} 18. Bxf3 {[%clk
0:02:45.4]} 18... Nh4 {[%clk 0:01:00.1]} 19. Bg2 {[%clk 0:02:34.3]} 19... Nxg2
{[%clk 0:00:29]} 20. Kxg2 {[%clk 0:02:36.2]} 20... Qd7 {[%clk 0:00:30.1]} 21.
Qd3 {[%clk 0:02:09.3]} 21... Nh5 {[%clk 0:00:29.4]} 22. Ne2 {[%clk 0:02:09.6]}
22... Qg4+ {[%clk 0:00:27.8]} 23. Kh1 {[%clk 0:02:07.1]} 23... Rf3 {[%clk
0:00:28.4]} 24. Ne3 {[%clk 0:01:53.7]} 24... Qh4 {[%clk 0:00:23.5]} 25. Rg1
{[%clk 0:01:50.9]} 25... Rxf2 {[%clk 0:00:22.3]} 26. Rg2 {[%clk 0:01:46.4]}
26... Bh3 {[%clk 0:00:15.3]} 27. Rag1 {[%clk 0:00:55.8]} 27... Bxg2+ {[%clk
0:00:16]} 28. Nxg2 {[%clk 0:00:57.4]} 28... Qf6 {[%clk 0:00:17]} 29. Ng3 {[%clk
0:00:49.5]} 29... Nxg3+ {[%clk 0:00:13.3]} 30. Qxg3 {[%clk 0:00:51.4]} 30... Rf3
{[%clk 0:00:14.3]} 31. Qg4 {[%clk 0:00:48.7]} 31... Rxa3 {[%clk 0:00:15]} 32.
Nh4 {[%clk 0:00:49.8]} 32... Kh8 {[%clk 0:00:14.3]} 33. Nf5 {[%clk 0:00:50.4]}
33... Rg8 {[%clk 0:00:14.6]} 34. b6 {[%clk 0:00:47.4]} 34... axb6 {[%clk
0:00:15]} 35. axb6 {[%clk 0:00:47.4]} 35... cxb6 {[%clk 0:00:16.1]} 36. cxd6
{[%clk 0:00:47.4]} 36... Raa8 {[%clk 0:00:16.8]} 37. Qh5 {[%clk 0:00:38.9]}
37... Bh6 {[%clk 0:00:09.3]} 38. Rxg8+ {[%clk 0:00:28.2]} 38... Rxg8 {[%clk
0:00:09.3]} 39. Qxh6 {[%clk 0:00:27.2]} 39... Qxh6 {[%clk 0:00:08.7]} 40. Nxh6
{[%clk 0:00:29.1]} 40... Rf8 {[%clk 0:00:08.1]} 41. d7 {[%clk 0:00:21.8]} 41...
Kg7 {[%clk 0:00:09.1]} 42. Ng4 {[%clk 0:00:11]} 42... b5 {[%clk 0:00:08.5]} 43.
Nxe5 {[%clk 0:00:11.2]} 43... b4 {[%clk 0:00:08.8]} 44. Nd3 {[%clk 0:00:06.8]}
44... b3 {[%clk 0:00:09]} 45. e5 {[%clk 0:00:08.3]} 45... Kf7 {[%clk 0:00:09.3]}
46. e6+ {[%clk 0:00:06]} 46... Ke7 {[%clk 0:00:10.2]} 47. Kg2 {[%clk 0:00:05.3]}
47... Rf5 {[%clk 0:00:10.8]} 48. d6+ {[%clk 0:00:02.5]} 48... Kd8 {[%clk
0:00:10.2]} 49. Kg3 {[%clk 0:00:03.6]} 49... Rd5 {[%clk 0:00:10.9]} 50. Nf4
{[%clk 0:00:03.3]} 50... Rxd6 {[%clk 0:00:11.4]} 51. Ne2 {[%clk 0:00:04.5]}
51... b2 {[%clk 0:00:12]} 52. Nc3 {[%clk 0:00:06.3]} 52... Rxe6 {[%clk
0:00:12.8]} 0-1

[Event "*** Titled Tuesday Blitz"]
[Site "Chess.com"]
[Date "2019.09.03"]
[Round "6"]
[White "HrvojeZagreb"]
[Black "bluejay1897"]
[Result "0-1"]
[WhiteElo "2068"]
[BlackElo "2292"]
[TimeControl "180+2"]
[EndTime "16:21:33 PDT"]
[Termination "bluejay1897 won by resignation"]

1. d4 {[%clk 0:03:01.9]} 1... Nf6 {[%clk 0:02:59.9]} 2. Bf4 {[%clk 0:03:02.9]}
2... e6 {[%clk 0:03:00.2]} 3. e3 {[%clk 0:03:03.4]} 3... b6 {[%clk 0:03:00.5]}
4. Nd2 {[%clk 0:03:00.7]} 4... Bb7 {[%clk 0:03:00.9]} 5. a4 {[%clk 0:02:58]}
5... a5 {[%clk 0:03:00.9]} 6. Ngf3 {[%clk 0:02:56.3]} 6... Be7 {[%clk
0:03:01.3]} 7. h3 {[%clk 0:02:50.6]} 7... O-O {[%clk 0:03:01.1]} 8. Bd3 {[%clk
0:02:48.4]} 8... c5 {[%clk 0:02:59.4]} 9. Nc4 {[%clk 0:02:45.4]} 9... cxd4
{[%clk 0:02:58.1]} 10. exd4 {[%clk 0:02:44.9]} 10... d5 {[%clk 0:02:51.7]} 11.
Nce5 {[%clk 0:02:45.6]} 11... Ne4 {[%clk 0:02:51.4]} 12. Nd2 {[%clk 0:02:29.4]}
12... f6 {[%clk 0:02:46.1]} 13. Ng4 {[%clk 0:02:21.6]} 13... Nd7 {[%clk
0:02:43.4]} 14. f3 {[%clk 0:02:20.9]} 14... Nxd2 {[%clk 0:02:33.6]} 15. Qxd2
{[%clk 0:02:22.8]} 15... Re8 {[%clk 0:02:30.4]} 16. O-O {[%clk 0:02:20.3]} 16...
Nf8 {[%clk 0:02:29]} 17. Rfe1 {[%clk 0:02:17.9]} 17... Bd6 {[%clk 0:02:28.2]}
18. Bb5 {[%clk 0:02:11.9]} 18... Re7 {[%clk 0:02:24.7]} 19. Re2 {[%clk
0:02:07.8]} 19... Qc7 {[%clk 0:02:23.8]} 20. Bxd6 {[%clk 0:02:05.6]} 20... Qxd6
{[%clk 0:02:24.4]} 21. Rae1 {[%clk 0:02:05.6]} 21... Rc8 {[%clk 0:02:14.7]} 22.
Nf2 {[%clk 0:02:01.3]} 22... Bc6 {[%clk 0:02:12.8]} 23. Bxc6 {[%clk 0:01:52.2]}
23... Qxc6 {[%clk 0:02:10.1]} 24. b3 {[%clk 0:01:53.1]} 24... Kf7 {[%clk
0:02:05.6]} 25. Nd3 {[%clk 0:01:53.3]} 25... Qc3 {[%clk 0:02:04.6]} 26. Qf4
{[%clk 0:01:53.5]} 26... Kg8 {[%clk 0:02:00.9]} 27. h4 {[%clk 0:01:39.8]} 27...
h6 {[%clk 0:01:57.6]} 28. h5 {[%clk 0:01:39.7]} 28... Rc6 {[%clk 0:01:50.6]} 29.
Nf2 {[%clk 0:01:34.8]} 29... Qb4 {[%clk 0:01:27.1]} 30. Ng4 {[%clk 0:01:33.6]}
30... Qd6 {[%clk 0:01:27.6]} 31. Qe3 {[%clk 0:01:29.5]} 31... Rec7 {[%clk
0:01:24.5]} 32. Qd3 {[%clk 0:01:29.6]} 32... Rc3 {[%clk 0:01:22.2]} 33. Qd2
{[%clk 0:01:27.2]} 33... Qc6 {[%clk 0:01:19.6]} 34. Ne3 {[%clk 0:01:16.1]} 34...
Qd6 {[%clk 0:01:05]} 35. Kf2 {[%clk 0:01:05.6]} 35... Qf4 {[%clk 0:01:01.6]} 36.
g3 {[%clk 0:01:05.6]} 36... Qg5 {[%clk 0:01:00.1]} 37. Rh1 {[%clk 0:01:05]}
37... f5 {[%clk 0:00:58.4]} 38. f4 {[%clk 0:01:02.2]} 38... Qf6 {[%clk
0:00:58.5]} 39. Qd1 {[%clk 0:00:54.6]} 39... R7c6 {[%clk 0:00:55.3]} 40. Ng2
{[%clk 0:00:50.1]} 40... Qf7 {[%clk 0:00:52.8]} 41. Ne1 {[%clk 0:00:47.9]} 41...
Nd7 {[%clk 0:00:53.4]} 42. Nd3 {[%clk 0:00:45.2]} 42... Qf8 {[%clk 0:00:44.1]}
43. Rhe1 {[%clk 0:00:41.3]} 43... Nf6 {[%clk 0:00:44.4]} 44. Ne5 {[%clk
0:00:36.3]} 44... Ne4+ {[%clk 0:00:40.1]} 45. Rxe4 {[%clk 0:00:36.8]} 45... fxe4
{[%clk 0:00:41.1]} 46. Nxc6 {[%clk 0:00:37.8]} 46... Rxc6 {[%clk 0:00:41.1]} 47.
c4 {[%clk 0:00:27.6]} 47... Qb4 {[%clk 0:00:37]} 48. cxd5 {[%clk 0:00:21.7]}
48... exd5 {[%clk 0:00:37.7]} 49. g4 {[%clk 0:00:22.3]} 49... Rc3 {[%clk
0:00:36.9]} 50. Re3 {[%clk 0:00:21.7]} 50... Rxe3 {[%clk 0:00:36.3]} 51. Kxe3
{[%clk 0:00:23.6]} 51... Qc3+ {[%clk 0:00:37.4]} 52. Kf2 {[%clk 0:00:23.2]}
52... Kf7 {[%clk 0:00:38.4]} 53. g5 {[%clk 0:00:24]} 53... e3+ {[%clk
0:00:28.3]} 54. Kf3 {[%clk 0:00:22.5]} 54... Ke6 {[%clk 0:00:21]} 55. Qe2 {[%clk
0:00:22.4]} 55... Qxb3 {[%clk 0:00:21.6]} 56. Qxe3+ {[%clk 0:00:22.7]} 56...
Qxe3+ {[%clk 0:00:22.6]} 57. Kxe3 {[%clk 0:00:24.6]} 57... Kf5 {[%clk
0:00:21.4]} 58. g6 {[%clk 0:00:20.7]} 58... Kg4 {[%clk 0:00:21.7]} 59. f5 {[%clk
0:00:19.4]} 59... Kxf5 {[%clk 0:00:22.7]} 60. Kf3 {[%clk 0:00:20.6]} 60... Kg5
{[%clk 0:00:23.8]} 61. Kg3 {[%clk 0:00:21.6]} 61... Kxh5 {[%clk 0:00:25.1]} 62.
Kf4 {[%clk 0:00:23.5]} 62... Kxg6 {[%clk 0:00:26.5]} 63. Ke5 {[%clk 0:00:25.2]}
63... h5 {[%clk 0:00:28]} 64. Kxd5 {[%clk 0:00:26.3]} 64... h4 {[%clk
0:00:29.6]} 65. Ke4 {[%clk 0:00:27.6]} 65... Kf6 {[%clk 0:00:31]} 66. d5 {[%clk
0:00:26.1]} 66... g5 {[%clk 0:00:30.8]} 67. Kf3 {[%clk 0:00:26.8]} 67... Ke5
{[%clk 0:00:31.8]} 0-1

[Event "*** Titled Tuesday Blitz"]
[Site "Chess.com"]
[Date "2019.09.03"]
[Round "6"]
[White "karinachess1"]
[Black "Kanthecarowin"]
[Result "1/2-1/2"]
[WhiteElo "2554"]
[BlackElo "2389"]
[TimeControl "180+2"]
[EndTime "16:21:42 PDT"]
[Termination "Game drawn by stalemate"]

1. Nf3 {[%clk 0:03:01.9]} 1... Nf6 {[%clk 0:02:59.5]} 2. c4 {[%clk 0:03:03]}
2... g6 {[%clk 0:03:00.6]} 3. g3 {[%clk 0:03:02.2]} 3... Bg7 {[%clk 0:03:01.7]}
4. Bg2 {[%clk 0:03:03.8]} 4... d6 {[%clk 0:03:03]} 5. d4 {[%clk 0:03:05.2]} 5...
c6 {[%clk 0:03:03.9]} 6. Nc3 {[%clk 0:03:06.7]} 6... O-O {[%clk 0:03:05.1]} 7.
e4 {[%clk 0:03:07.8]} 7... Bg4 {[%clk 0:03:05.4]} 8. h3 {[%clk 0:03:03]} 8...
Bxf3 {[%clk 0:03:06.4]} 9. Bxf3 {[%clk 0:03:03.7]} 9... Nbd7 {[%clk 0:03:08.3]}
10. O-O {[%clk 0:03:04.1]} 10... Qc7 {[%clk 0:03:01.7]} 11. Be3 {[%clk 0:03:03]}
11... Rad8 {[%clk 0:02:50.3]} 12. Bg2 {[%clk 0:03:02.8]} 12... a6 {[%clk
0:02:34.1]} 13. Qc2 {[%clk 0:02:47.9]} 13... c5 {[%clk 0:02:32.9]} 14. d5 {[%clk
0:02:44.8]} 14... Rb8 {[%clk 0:02:31.1]} 15. a4 {[%clk 0:02:39.8]} 15... Qa5
{[%clk 0:02:31.6]} 16. f4 {[%clk 0:02:38.2]} 16... Rfc8 {[%clk 0:02:25.3]} 17.
Bd2 {[%clk 0:02:27.3]} 17... Qc7 {[%clk 0:02:22.9]} 18. Rae1 {[%clk 0:02:28.1]}
18... Ne8 {[%clk 0:02:02.2]} 19. h4 {[%clk 0:02:16.2]} 19... Bd4+ {[%clk
0:01:55.2]} 20. Kh2 {[%clk 0:02:16.9]} 20... Nef6 {[%clk 0:01:54.2]} 21. Bh3
{[%clk 0:02:15.9]} 21... h5 {[%clk 0:01:52.4]} 22. Ne2 {[%clk 0:02:10.2]} 22...
b5 {[%clk 0:01:50.3]} 23. cxb5 {[%clk 0:01:33.6]} 23... axb5 {[%clk 0:01:52.2]}
24. axb5 {[%clk 0:01:28.7]} 24... Rxb5 {[%clk 0:01:50.4]} 25. b3 {[%clk
0:01:30.1]} 25... Qb7 {[%clk 0:01:40.2]} 26. Rb1 {[%clk 0:01:19.6]} 26... Ra8
{[%clk 0:01:34.4]} 27. Rfd1 {[%clk 0:00:33.3]} 27... Ra3 {[%clk 0:01:29]} 28.
Bc1 {[%clk 0:00:23.6]} 28... Raxb3 {[%clk 0:01:26.7]} 29. Rxb3 {[%clk
0:00:25.2]} 29... Rxb3 {[%clk 0:01:28.6]} 30. Nxd4 {[%clk 0:00:26.7]} 30... cxd4
{[%clk 0:01:30.1]} 31. Rxd4 {[%clk 0:00:28.4]} 31... Ng4+ {[%clk 0:01:22.7]} 32.
Bxg4 {[%clk 0:00:24.8]} 32... hxg4 {[%clk 0:01:24.6]} 33. Rd3 {[%clk 0:00:17.9]}
33... Rxd3 {[%clk 0:01:21.3]} 34. Qxd3 {[%clk 0:00:19.8]} 34... Nc5 {[%clk
0:01:22.8]} 35. Qc2 {[%clk 0:00:19.4]} 35... Qb4 {[%clk 0:01:17.4]} 36. e5
{[%clk 0:00:20.8]} 36... dxe5 {[%clk 0:01:13.1]} 37. fxe5 {[%clk 0:00:22.7]}
37... Qd4 {[%clk 0:01:11.7]} 38. e6 {[%clk 0:00:18.7]} 38... Qxd5 {[%clk
0:01:00.6]} 39. exf7+ {[%clk 0:00:19.9]} 39... Kxf7 {[%clk 0:01:01.3]} 40. Be3
{[%clk 0:00:19.7]} 40... Ne6 {[%clk 0:00:55.7]} 41. Qe2 {[%clk 0:00:18]} 41...
Qe4 {[%clk 0:00:53.1]} 42. Qf2+ {[%clk 0:00:18.8]} 42... Ke8 {[%clk 0:00:50.8]}
43. Bb6 {[%clk 0:00:16.6]} 43... Ng7 {[%clk 0:00:47.8]} 44. Qb2 {[%clk
0:00:11.9]} 44... Nf5 {[%clk 0:00:47.1]} 45. Qd2 {[%clk 0:00:12.1]} 45... Qe5
{[%clk 0:00:38.5]} 46. Qf4 {[%clk 0:00:04.8]} 46... Qxf4 {[%clk 0:00:31.9]} 47.
gxf4 {[%clk 0:00:06.7]} 47... Kd7 {[%clk 0:00:32.7]} 48. Bf2 {[%clk 0:00:08.3]}
48... Ke6 {[%clk 0:00:34]} 49. Kg2 {[%clk 0:00:08.6]} 49... Kd5 {[%clk
0:00:34.9]} 50. Be1 {[%clk 0:00:08.5]} 50... Ke4 {[%clk 0:00:35.7]} 51. Bd2
{[%clk 0:00:07]} 51... Nxh4+ {[%clk 0:00:29.5]} 52. Kg3 {[%clk 0:00:08.9]} 52...
Nf3 {[%clk 0:00:31]} 53. Bc1 {[%clk 0:00:10]} 53... Kf5 {[%clk 0:00:32.4]} 54.
Be3 {[%clk 0:00:10.4]} 54... Ne1 {[%clk 0:00:32.5]} 55. Bd2 {[%clk 0:00:10.1]}
55... Nd3 {[%clk 0:00:33.7]} 56. Be3 {[%clk 0:00:10.8]} 56... Nb4 {[%clk
0:00:34.8]} 57. Bd2 {[%clk 0:00:10.7]} 57... Nd5 {[%clk 0:00:36]} 58. Bc1 {[%clk
0:00:12]} 58... Nf6 {[%clk 0:00:37]} 59. Kh4 {[%clk 0:00:10.5]} 59... Ne4 {[%clk
0:00:34.6]} 60. Be3 {[%clk 0:00:11.7]} 60... Nf6 {[%clk 0:00:34.4]} 61. Bd2
{[%clk 0:00:12.5]} 61... Nd5 {[%clk 0:00:35.4]} 62. Kg3 {[%clk 0:00:13.2]} 62...
Nf6 {[%clk 0:00:35.3]} 63. Bc1 {[%clk 0:00:14]} 63... Nh5+ {[%clk 0:00:18.6]}
64. Kh4 {[%clk 0:00:15.1]} 64... Nxf4 {[%clk 0:00:20.5]} 65. Bxf4 {[%clk
0:00:16.2]} 65... Kxf4 {[%clk 0:00:22.4]} 1/2-1/2